[Event "FIDE Grand Swiss 2023"]
[Site "Villa Marina, Douglas, Isle of Man"]
[Date "2023.11.03"]
[Round "9.46"]
[White "Ivanchuk, Vasyl"]
[Black "Gurel, Ediz"]
[Result "1-0"]
[WhiteElo "2653"]
[BlackElo "2514"]
[EventDate "2023.10.25"]
[ECO "C24"]
[PlyCount "129"]
[BlackClock "00:07:18"]
[BlackFideId "44507356"]
[TimeControl "40/100 + 20/50 + 15 + 30s/move"]
[WhiteClock "00:08:00"]
[WhiteFideId "14100010"]

1.e4 {[%clk 01:40:59]} 1...e5 {[%clk 01:40:49][%emt 00:00:11]} 2.Bc4 {[%clk
01:41:25][%emt 00:00:03]} 2...Nf6 {[%clk 01:41:07][%emt 00:00:13]} 3.d3 {[%clk
01:41:52][%emt 00:00:02]} 3...c6 {[%clk 01:41:24][%emt 00:00:14]} 4.Nf3 {[%clk
01:42:17][%emt 00:00:05]} 4...d5 {[%clk 01:41:46][%emt 00:00:08]} 5.Bb3 {[%clk
01:42:43][%emt 00:00:04]} 5...a5 {[%clk 01:41:46][%emt 00:00:30]} 6.a4 {[%clk
01:42:32][%emt 00:00:41]} 6...Bb4+ {[%clk 01:41:52][%emt 00:00:24]} 7.c3 {[%clk
01:42:20][%emt 00:00:42]} 7...Bd6 {[%clk 01:42:14][%emt 00:00:08]} 8.O-O {[%clk
01:42:00][%emt 00:00:50]} 8...O-O {[%clk 01:40:28][%emt 00:02:16]} 9.Re1 {[%clk
01:41:17][%emt 00:01:13]} 9...dxe4 {[%clk 01:38:38][%emt 00:02:20]} 10.dxe4 
{[%clk 01:41:43][%emt 00:00:04]} 10...Qe7 {[%clk 01:38:11][%emt 00:00:58]} 
11.Nbd2 {[%clk 01:41:34][%emt 00:00:37]} 11...Nbd7 {[%clk 01:35:18][%emt
00:03:23]} 12.Nf1 {[%clk 01:41:03][%emt 00:01:01]} 12...Nc5 {[%clk
01:28:54][%emt 00:06:54]} 13.Bc2 {[%clk 01:40:13][%emt 00:01:21]} 13...Be6 
{[%clk 01:22:22][%emt 00:07:02]} 14.Ng3 {[%clk 01:38:53][%emt 00:01:50]} 
14...Rfd8 {[%clk 01:21:50][%emt 00:01:02]} 15.Qe2 {[%clk 01:38:25][%emt
00:00:57]} 15...Qc7 {[%clk 01:15:45][%emt 00:06:35]} 16.Bg5 {[%clk
01:35:11][%emt 00:03:44]} 16...Be7 {[%clk 00:59:59][%emt 00:16:16]} 17.Nf5 
{[%clk 01:35:08][%emt 00:00:34]} 17...Bxf5 {[%clk 01:00:09][%emt 00:00:21]} 
18.exf5 {[%clk 01:35:17][%emt 00:00:20]} 18...e4 {[%clk 01:00:23][%emt
00:00:17]} 19.Nd2 {[%clk 01:33:25][%emt 00:02:21]} 19...Re8 {[%clk
00:51:53][%emt 00:08:59]} 20.Rad1 {[%clk 01:27:48][%emt 00:06:07]} 20...Rad8 
{[%clk 00:41:30][%emt 00:10:55]} 21.g3 {[%clk 01:14:31][%emt 00:13:45]} 
21...Qc8 {[%clk 00:32:39][%emt 00:09:22]} 22.Nc4 {[%clk 00:52:12][%emt
00:22:50]} 22...Rxd1 {[%clk 00:28:12]} ( 22...Rd5 {[%emt 00:04:56]} 23.Rd2 Rxd2 
{[%clk 00:28:12]} 24.Rd1 {[%clk 00:49:26]} 24...Rxd1+ ) 23.Rxd1 {[%clk
00:49:26][%emt 00:08:12]} 23...Qxf5 {[%clk 00:26:36][%emt 00:02:06]} 24.Bxf6 
{[%clk 00:49:03][%emt 00:00:53]} 24...Qxf6 {[%clk 00:27:03][%emt 00:00:03]} 
25.Nxa5 {[%clk 00:49:24][%emt 00:00:09]} 25...Bf8 {[%clk 00:25:19][%emt
00:02:12]} 26.Nc4 {[%clk 00:34:06][%emt 00:15:50]} 26...g6 {[%clk 00:20:55][%emt
00:04:55]} 27.a5 {[%clk 00:32:47][%emt 00:01:48]} 27...Qe6 {[%clk 00:19:57][%emt
00:01:27]} 28.Kg2 {[%clk 00:21:43][%emt 00:11:34]} 28...Nd7 {[%clk
00:17:29][%emt 00:02:59]} 29.Ne3 {[%clk 00:16:40][%emt 00:05:32]} 29...Nf6 
{[%clk 00:16:21][%emt 00:01:39]} 30.Qc4 {[%clk 00:15:58][%emt 00:01:11]} 
30...Qe5 {[%clk 00:15:03][%emt 00:01:49]} 31.a6 {[%clk 00:13:26][%emt 00:03:02]} 
31...bxa6 {[%clk 00:15:20][%emt 00:00:13]} 32.Qxc6 {[%clk 00:12:36][%emt
00:01:20]} 32...Re6 {[%clk 00:13:24][%emt 00:02:26]} 33.Qc8 {[%clk
00:09:04][%emt 00:04:02]} 33...Kg7 {[%clk 00:12:04][%emt 00:01:50]} 34.b4 
{[%clk 00:09:03][%emt 00:00:31]} 34...Qb5 {[%clk 00:08:04][%emt 00:04:30]} 
35.Qc4 {[%clk 00:06:12][%emt 00:03:21]} 35...Rc6 {[%clk 00:06:00][%emt
00:02:35]} 36.Qd4 {[%clk 00:06:08][%emt 00:00:32]} 36...Rd6 {[%clk
00:05:34][%emt 00:00:58]} 37.Qa7 {[%clk 00:06:36][%emt 00:00:01]} 37...Qb6 
{[%clk 00:02:40][%emt 00:03:24]} 38.Qxb6 {[%clk 00:05:32][%emt 00:01:34]} 
38...Rxb6 {[%clk 00:03:09][%emt 00:00:01]} 39.Rd4 {[%clk 00:03:44][%emt
00:02:18]} 39...Rc6 {[%clk 00:03:17][%emt 00:00:22]} 40.Nc4 {[%clk
00:03:16][%emt 00:00:58]} 40...Be7 {[%clk 00:01:49][%emt 00:01:58]} 41.Kf1 
{[%clk 00:01:28][%emt 00:02:16]} 41...e3 {[%clk 00:39:23][%emt 00:12:58]} 42.f3 
{[%clk 00:48:03][%emt 00:03:54]} 42...Rc7 {[%clk 00:36:37][%emt 00:03:17]} 
43.Bb3 {[%clk 00:46:16][%emt 00:02:17]} 43...Nd7 {[%clk 00:27:20][%emt
00:09:46]} 44.Re4 {[%clk 00:40:45][%emt 00:06:00]} 44...Bf6 {[%clk
00:21:13][%emt 00:06:39]} 45.Rxe3 {[%clk 00:40:29][%emt 00:00:45]} 45...Rc6 
{[%clk 00:21:41][%emt 00:00:03]} 46.f4 {[%clk 00:38:12][%emt 00:02:46]} 
46...Nb6 {[%clk 00:19:09][%emt 00:03:03]} 47.Ne5 {[%clk 00:38:18][%emt
00:00:23]} 47...Bxe5 {[%clk 00:19:32][%emt 00:00:08]} 48.fxe5 {[%clk
00:38:43][%emt 00:00:05]} 48...a5 {[%clk 00:16:48][%emt 00:03:14]} 49.Ke2 
{[%clk 00:28:57][%emt 00:10:14]} 49...axb4 {[%clk 00:16:04][%emt 00:01:15]} 
50.cxb4 {[%clk 00:29:20][%emt 00:00:08]} 50...Rc1 {[%clk 00:15:23][%emt
00:01:11]} 51.Kd3 {[%clk 00:22:55][%emt 00:06:55]} 51...Nd7 {[%clk
00:13:40][%emt 00:02:13]} 52.Kd4 {[%clk 00:22:54][%emt 00:00:30]} 52...Rc7 
{[%clk 00:11:40][%emt 00:02:31]} 53.b5 {[%clk 00:19:35][%emt 00:03:48]} 
53...Rb7 {[%clk 00:10:32][%emt 00:01:39]} 54.Bc4 {[%clk 00:17:50][%emt
00:02:13]} 54...Ra7 {[%clk 00:09:55][%emt 00:01:09]} 55.Kd5 {[%clk
00:09:47][%emt 00:08:31]} 55...Nb6+ {[%clk 00:08:27][%emt 00:02:00]} 56.Kc5 
{[%clk 00:09:48][%emt 00:00:28]} 56...Nd7+ {[%clk 00:08:32][%emt 00:00:26]} 
57.Kc6 {[%clk 00:08:58][%emt 00:01:18]} 57...Nb8+ {[%clk 00:08:58][%emt
00:00:06]} 58.Kb6 {[%clk 00:07:52][%emt 00:01:35]} 58...Re7 {[%clk
00:08:59][%emt 00:00:29]} 59.e6 {[%emt 00:01:16]} 59...h5 {[%clk 00:08:49]} 
60.h4 {[%clk 00:07:26][%emt 00:00:50]} 60...fxe6 {[%clk 00:07:43][%emt
00:01:37]} 61.Rxe6 {[%clk 00:07:43][%emt 00:00:13]} 61...Nd7+ {[%clk
00:08:07][%emt 00:00:06]} 62.Kc7 {[%clk 00:07:49][%emt 00:00:22]} 62...Rxe6 
{[%clk 00:07:10][%emt 00:01:28]} 63.Bxe6 {[%clk 00:08:15][%emt 00:00:05]} 
63...Nc5 {[%clk 00:07:34][%emt 00:00:06]} 64.Kd6 {[%clk 00:08:08][%emt
00:00:35]} 64...Nb7+ {[%clk 00:07:24][%emt 00:00:42]} 65.Ke5 {[%clk 00:08:00]
[%emt 00:00:37]} 1-0

[Event "FIDE Grand Swiss 2023"]
[Site "Villa Marina, Douglas, Isle of Man"]
[Date "2023.11.03"]
[Round "9.47"]
[White "Karthikeyan, Murali"]
[Black "Santos Latasa, Jaime"]
[Result "1/2-1/2"]
[WhiteElo "2611"]
[BlackElo "2650"]
[EventDate "2023.10.25"]
[ECO "C81"]
[PlyCount "64"]
[BlackClock "01:03:49"]
[BlackFideId "2293307"]
[TimeControl "40/100 + 20/50 + 15 + 30s/move"]
[WhiteClock "00:40:44"]
[WhiteFideId "5074452"]

1.e4 {[%clk 01:40:57][%emt 00:00:02]} 1...e5 {[%clk 01:40:51][%emt 00:00:09]} 
2.Nf3 {[%clk 01:41:19][%emt 00:00:08]} 2...Nc6 {[%clk 01:41:17][%emt 00:00:04]} 
3.Bb5 {[%clk 01:41:37][%emt 00:00:12]} 3...a6 {[%clk 01:41:41][%emt 00:00:07]} 
4.Ba4 {[%clk 01:41:57][%emt 00:00:09]} 4...Nf6 {[%clk 01:42:02][%emt 00:00:10]} 
5.O-O {[%clk 01:42:14][%emt 00:00:12]} 5...Nxe4 {[%clk 01:42:24][%emt 00:00:09]} 
6.d4 {[%clk 01:42:26][%emt 00:00:18]} 6...b5 {[%clk 01:42:49][%emt 00:00:05]} 
7.Bb3 {[%clk 01:42:51][%emt 00:00:05]} 7...d5 {[%clk 01:43:14][%emt 00:00:04]} 
8.dxe5 {[%clk 01:43:15][%emt 00:00:06]} 8...Be6 {[%clk 01:43:40][%emt 00:00:04]} 
9.Qe2 {[%clk 01:39:20][%emt 00:04:25]} 9...Nc5 {[%clk 01:43:38][%emt 00:00:32]} 
10.Rd1 {[%clk 01:38:35][%emt 00:01:15]} 10...Nxb3 {[%clk 01:43:31][%emt
00:00:37]} 11.axb3 {[%clk 01:38:40][%emt 00:00:25]} 11...Be7 {[%clk
01:43:16][%emt 00:00:45]} 12.c3 {[%clk 01:33:41][%emt 00:05:29]} 12...O-O 
{[%clk 01:40:02][%emt 00:03:44]} 13.b4 {[%clk 01:18:39][%emt 00:15:32]} 
13...Qd7 {[%clk 01:38:03][%emt 00:02:30]} 14.Be3 {[%clk 01:14:23][%emt
00:04:45]} 14...Bg4 {[%clk 01:28:39][%emt 00:09:54]} 15.Nbd2 {[%clk
01:07:32][%emt 00:07:21]} 15...Qe6 {[%clk 01:25:38][%emt 00:03:31]} 16.h3 
{[%clk 00:59:53][%emt 00:08:09]} 16...Bxf3 {[%clk 01:18:23][%emt 00:07:46]} 
17.Nxf3 {[%clk 01:00:16][%emt 00:00:07]} 17...Nxe5 {[%clk 01:17:50][%emt
00:01:03]} 18.Nxe5 {[%clk 00:59:38][%emt 00:01:07]} 18...Qxe5 {[%clk
01:18:12][%emt 00:00:08]} 19.Qg4 {[%clk 00:56:11][%emt 00:03:58]} 19...Qe6 
{[%clk 01:15:34][%emt 00:03:08]} 20.Bd4 {[%clk 00:49:53][%emt 00:06:47]} 
20...Qxg4 {[%clk 01:13:37][%emt 00:02:28]} 21.hxg4 {[%clk 00:49:56][%emt
00:00:26]} 21...Rfc8 {[%clk 01:08:40][%emt 00:05:27]} 22.Ra5 {[%clk
00:47:36][%emt 00:02:50]} 22...f6 {[%clk 01:07:06][%emt 00:02:04]} 23.Rda1 
{[%clk 00:46:33][%emt 00:01:33]} 23...c5 {[%clk 01:07:26][%emt 00:00:09]} 
24.bxc5 {[%clk 00:45:45][%emt 00:01:19]} 24...Bxc5 {[%clk 01:07:27][%emt
00:00:29]} 25.Bxc5 {[%clk 00:45:29][%emt 00:00:45]} 25...Rxc5 {[%clk
01:07:52][%emt 00:00:06]} 26.Rxa6 {[%clk 00:45:13][%emt 00:00:46]} 26...Rxa6 
{[%clk 01:08:08][%emt 00:00:14]} 27.Rxa6 {[%clk 00:45:36][%emt 00:00:07]} 
27...Rc4 {[%clk 01:03:46][%emt 00:04:51]} 28.Rb6 {[%clk 00:43:20][%emt
00:02:47]} 28...d4 {[%clk 01:04:02][%emt 00:00:14]} 29.cxd4 {[%clk
00:42:31][%emt 00:01:18]} 29...Rxd4 {[%clk 01:04:21][%emt 00:00:12]} 30.Rxb5 
{[%clk 00:42:55][%emt 00:00:06]} 30...Rxg4 {[%clk 01:04:47][%emt 00:00:04]} 
31.b4 {[%clk 00:42:52][%emt 00:00:33]} 31...h5 {[%clk 01:04:25][%emt 00:00:51]} 
32.Rxh5 {[%clk 00:40:44] [%emt 00:02:39]} 32...Rxb4 {[%clk 01:03:49] [%emt
00:00:06]} 1/2-1/2

[Event "FIDE Grand Swiss 2023"]
[Site "Villa Marina, Douglas, Isle of Man"]
[Date "2023.11.03"]
[Round "9.48"]
[White "Iturrizaga Bonelli, Eduardo"]
[Black "Idani, Pouya"]
[Result "1/2-1/2"]
[WhiteElo "2615"]
[BlackElo "2633"]
[EventDate "2023.10.25"]
[ECO "D33"]
[PlyCount "40"]
[BlackClock "01:11:35"]
[BlackFideId "12510130"]
[TimeControl "40/100 + 20/50 + 15 + 30s/move"]
[WhiteClock "00:34:38"]
[WhiteFideId "3901211"]

1.c4 {[%clk 01:40:56][%emt 00:00:02]} 1...Nf6 {[%clk 01:40:54][%emt 00:00:07]} 
2.Nc3 {[%clk 01:40:24][%emt 00:01:02]} 2...c5 {[%clk 01:41:17][%emt 00:00:08]} 
3.g3 {[%clk 01:35:58][%emt 00:04:55]} 3...e6 {[%clk 01:40:37][%emt 00:01:10]} 
4.Nf3 {[%clk 01:36:17][%emt 00:00:10]} 4...d5 {[%clk 01:41:03][%emt 00:00:04]} 
5.cxd5 {[%clk 01:36:41][%emt 00:00:07]} 5...exd5 {[%clk 01:41:30][%emt
00:00:03]} 6.d4 {[%clk 01:37:03][%emt 00:00:08]} 6...Nc6 {[%clk 01:41:57][%emt
00:00:03]} 7.Bg2 {[%clk 01:37:21][%emt 00:00:11]} 7...cxd4 {[%clk 01:42:23][%emt
00:00:06]} 8.Nxd4 {[%clk 01:37:44][%emt 00:00:06]} 8...Bc5 {[%clk 01:42:49][%emt
00:00:03]} 9.Nb3 {[%clk 01:19:45][%emt 00:18:30]} 9...Bb6 {[%clk 01:43:14][%emt
00:00:05]} 10.O-O {[%clk 01:20:09][%emt 00:00:05]} 10...d4 {[%clk 01:43:42][%emt
00:00:03]} 11.Na4 {[%clk 01:20:35][%emt 00:00:05]} 11...O-O {[%clk
01:44:06][%emt 00:00:05]} 12.Nxb6 {[%clk 01:18:41][%emt 00:02:24]} 12...axb6 
{[%clk 01:43:19][%emt 00:01:17]} 13.Bxc6 {[%clk 01:15:54][%emt 00:03:17]} 
13...bxc6 {[%clk 01:43:10][%emt 00:00:39]} 14.Qxd4 {[%clk 01:16:19][%emt
00:00:05]} 14...c5 {[%clk 01:40:09][%emt 00:03:31]} 15.Qxd8 {[%clk
01:10:58][%emt 00:05:50]} 15...Rxd8 {[%clk 01:40:29][%emt 00:00:11]} 16.Bf4 
{[%clk 00:46:23] [%emt 00:25:04]} 16...Nd5 {[%clk 01:36:40] [%emt 00:04:20]} 
17.Bd2 {[%clk 00:45:53] [%emt 00:01:00]} 17...Nf6 {[%clk 01:17:16] [%emt
00:19:54]} 18.Bf4 {[%clk 00:34:19] [%emt 00:12:03]} 18...Nd5 {[%clk 01:11:46]
[%emt 00:06:00]} 19.Bd2 {[%clk 00:45:53][%emt 00:01:00]} 19...Nf6 {[%clk
01:17:16][%emt 00:19:54]} 20.Bf4 {[%clk 00:46:23][%emt 00:25:04]} 20...Nd5 
{[%clk 01:36:40][%emt 00:04:20]} 1/2-1/2

[Event "FIDE Grand Swiss 2023"]
[Site "Villa Marina, Douglas, Isle of Man"]
[Date "2023.11.03"]
[Round "9.49"]
[White "Kollars, Dmitrij"]
[Black "Adhiban, B."]
[Result "1-0"]
[WhiteElo "2633"]
[BlackElo "2551"]
[EventDate "2023.10.25"]
[ECO "B44"]
[PlyCount "50"]
[BlackFideId "5018471"]
[TimeControl "40/100 + 20/50 + 15 + 30s/move"]
[WhiteFideId "12909572"]

1.e4 {[%clk 01:40:54][%emt 00:00:05]} 1...c5 {[%clk 01:40:54][%emt 00:00:07]} 
2.Nf3 {[%clk 01:41:18][%emt 00:00:06]} 2...e6 {[%clk 01:41:20][%emt 00:00:05]} 
3.d4 {[%clk 01:41:11][%emt 00:00:36]} 3...cxd4 {[%clk 01:41:46][%emt 00:00:04]} 
4.Nxd4 {[%clk 01:41:37][%emt 00:00:04]} 4...Nc6 {[%clk 01:42:11][%emt 00:00:05]} 
5.Bf4 {[%clk 01:41:23][%emt 00:00:44]} 5...Nf6 {[%clk 01:37:00][%emt 00:05:41]} 
6.Nb5 {[%clk 01:40:14][%emt 00:01:39]} 6...e5 {[%clk 01:36:49][%emt 00:00:41]} 
7.Bg5 {[%clk 01:40:37][%emt 00:00:07]} 7...a6 {[%clk 01:28:01][%emt 00:09:18]} 
8.Bxf6 {[%clk 01:35:32][%emt 00:05:35]} 8...gxf6 {[%clk 01:19:02][%emt
00:09:29]} 9.Nd6+ {[%clk 01:21:18][%emt 00:14:44]} 9...Bxd6 {[%clk
01:19:29][%emt 00:00:03]} 10.Qxd6 {[%clk 01:21:43][%emt 00:00:05]} 10...Qe7 
{[%clk 01:09:00][%emt 00:10:59]} 11.Qd2 {[%clk 01:20:56][%emt 00:01:16]} 
11...f5 {[%clk 01:03:19][%emt 00:06:13]} 12.Nc3 {[%clk 01:17:22][%emt 00:04:03]} 
12...fxe4 {[%clk 01:03:31][%emt 00:00:18]} 13.Bc4 {[%clk 01:16:24][%emt
00:01:28]} 13...b5 {[%clk 01:00:09][%emt 00:03:53]} 14.Bd5 {[%clk 01:14:15][%emt
00:02:38]} 14...f5 {[%clk 00:59:20][%emt 00:01:19]} 15.Qh6 {[%clk 01:03:15][%emt
00:11:29]} 15...Bb7 {[%clk 00:53:21][%emt 00:06:29]} 16.Qh5+ {[%clk
00:41:28][%emt 00:22:17]} 16...Kd8 {[%clk 00:53:46][%emt 00:00:05]} 17.Qxf5 
{[%clk 00:38:07][%emt 00:03:52]} 17...b4 {[%clk 00:45:12][%emt 00:09:04]} 
18.Ne2 {[%clk 00:36:24][%emt 00:02:12]} 18...Nd4 {[%clk 00:45:28][%emt
00:00:15]} 19.Qxe4 {[%clk 00:34:16][%emt 00:02:38]} 19...Bxd5 {[%clk
00:43:09][%emt 00:02:49]} 20.Qxd5 {[%clk 00:34:38][%emt 00:00:08]} 20...Nxc2+ 
{[%clk 00:41:48][%emt 00:01:51]} 21.Kd1 {[%clk 00:28:42][%emt 00:06:26]} 
21...Rc8 {[%clk 00:39:02][%emt 00:03:16]} 22.Rc1 {[%clk 00:29:02][%emt
00:00:09]} 22...Rc5 {[%clk 00:32:32][%emt 00:07:01]} 23.Qa8+ {[%clk
00:29:07][%emt 00:00:25]} 23...Rc8 {[%clk 00:32:54][%emt 00:00:08]} 24.Qxa6 
{[%clk 00:26:36][%emt 00:03:01]} 24...b3 {[%clk 00:31:58][%emt 00:01:26]} 
25.axb3 {[%clk 00:26:20][%emt 00:00:46]} 25...Qe8 {[%clk 00:30:36][%emt
00:00:44]} 1-0

[Event "FIDE Grand Swiss 2023"]
[Site "Villa Marina, Douglas, Isle of Man"]
[Date "2023.11.03"]
[Round "9.50"]
[White "Mendonca, Leon Luke"]
[Black "Wu, Li"]
[Result "1-0"]
[WhiteElo "2622"]
[BlackElo "2303"]
[EventDate "2023.10.25"]
[ECO "A15"]
[PlyCount "87"]
[BlackClock "00:05:11"]
[BlackFideId "411086"]
[TimeControl "40/100 + 20/50 + 15 + 30s/move"]
[WhiteClock "00:17:31"]
[WhiteFideId "35028561"]

1.Nf3 {[%clk 01:40:50][%emt 00:00:08]} 1...Nf6 {[%clk 01:40:39][%emt 00:00:22]} 
2.c4 {[%clk 01:37:00][%emt 00:04:20]} 2...e6 {[%clk 01:39:08][%emt 00:02:02]} 
3.Nc3 {[%clk 01:37:18][%emt 00:00:11]} 3...d5 {[%clk 01:39:18][%emt 00:00:20]} 
4.e3 {[%clk 01:37:42][%emt 00:00:06]} 4...c5 {[%clk 01:37:49][%emt 00:01:59]} 
5.cxd5 {[%clk 01:38:05][%emt 00:00:07]} 5...exd5 {[%clk 01:38:17][%emt
00:00:03]} 6.d4 {[%clk 01:38:22][%emt 00:00:12]} 6...a6 {[%clk 01:37:30][%emt
00:01:17]} 7.Be2 {[%clk 01:35:44][%emt 00:03:08]} 7...Nc6 {[%clk 01:37:50][%emt
00:00:11]} 8.O-O {[%clk 01:34:50][%emt 00:01:22]} 8...Bd6 {[%clk 01:35:20][%emt
00:03:01]} 9.dxc5 {[%clk 01:31:11][%emt 00:04:09]} 9...Bxc5 {[%clk
01:35:47][%emt 00:00:04]} 10.b3 {[%clk 01:31:01][%emt 00:00:40]} 10...O-O 
{[%clk 01:36:11][%emt 00:00:06]} 11.Bb2 {[%clk 01:31:27][%emt 00:00:03]} 
11...Qd6 {[%clk 01:33:32][%emt 00:03:09]} 12.Na4 {[%clk 01:15:48][%emt
00:16:09]} 12...Ba7 {[%clk 01:32:51][%emt 00:01:11]} 13.Bxf6 {[%clk
01:09:19][%emt 00:07:00]} 13...Qxf6 {[%clk 01:24:28][%emt 00:08:53]} 14.Qxd5 
{[%clk 01:09:32][%emt 00:00:17]} 14...Bg4 {[%clk 01:22:10][%emt 00:02:48]} 
15.Rac1 {[%clk 01:04:36][%emt 00:05:25]} 15...Rfe8 {[%clk 01:14:54][%emt
00:07:46]} 16.Qc4 {[%clk 00:57:21][%emt 00:07:46]} 16...Bxf3 {[%clk
00:53:52][%emt 00:21:32]} 17.Bxf3 {[%clk 00:57:34][%emt 00:00:17]} 17...Ne5 
{[%clk 00:54:17][%emt 00:00:05]} 18.Qe2 {[%clk 00:56:53][%emt 00:01:09]} 
18...Nxf3+ {[%clk 00:54:20][%emt 00:00:28]} 19.Qxf3 {[%clk 00:57:21][%emt
00:00:02]} 19...Qxf3 {[%clk 00:54:44][%emt 00:00:06]} 20.gxf3 {[%clk
00:57:42][%emt 00:00:08]} 20...Rac8 {[%clk 00:54:35][%emt 00:00:40]} 21.Rfd1 
{[%clk 00:54:24][%emt 00:03:48]} 21...b5 {[%clk 00:53:15][%emt 00:01:51]} 
22.Nc3 {[%clk 00:46:32][%emt 00:08:21]} 22...Bc5 {[%clk 00:49:16][%emt
00:04:29]} 23.Ne4 {[%clk 00:43:44][%emt 00:03:17]} 23...Ba3 {[%clk
00:44:28][%emt 00:05:19]} 24.Rxc8 {[%clk 00:43:13][%emt 00:01:00]} 24...Rxc8 
{[%clk 00:44:54][%emt 00:00:04]} 25.Rd7 {[%clk 00:43:22][%emt 00:00:21]} 
25...h6 {[%clk 00:44:23][%emt 00:01:02]} 26.f4 {[%clk 00:30:24][%emt 00:13:27]} 
26...Rc6 {[%emt 00:09:54]} 27.f5 {[%clk 00:30:03][%emt 00:00:49]} 27...Kf8 
{[%clk 00:27:02][%emt 00:08:29]} 28.Kg2 {[%clk 00:27:12][%emt 00:03:21]} 
28...Ke8 {[%clk 00:26:30][%emt 00:01:01]} 29.Ra7 {[%clk 00:27:40][%emt
00:00:03]} 29...Bb2 {[%clk 00:26:37][%emt 00:00:23]} 30.h4 {[%clk 00:21:03][%emt
00:07:07]} 30...Be5 {[%clk 00:23:39][%emt 00:03:27]} 31.Ra8+ {[%clk
00:20:32][%emt 00:01:02]} 31...Ke7 {[%clk 00:23:49][%emt 00:00:20]} 32.h5 
{[%clk 00:20:05][%emt 00:00:57]} 32...Bc7 {[%clk 00:22:33][%emt 00:01:46]} 
33.Rg8 {[%clk 00:18:19][%emt 00:02:15]} 33...Be5 {[%clk 00:20:58][%emt
00:02:06]} 34.f4 {[%clk 00:16:01][%emt 00:02:47]} 34...Rc2+ {[%clk
00:07:35][%emt 00:13:53]} 35.Kf3 {[%clk 00:16:21][%emt 00:00:11]} 35...Ba1 
{[%clk 00:06:12][%emt 00:01:54]} 36.Ra8 {[%clk 00:15:30][%emt 00:01:20]} 
36...Rxa2 {[%clk 00:06:37][%emt 00:00:05]} 37.Ra7+ {[%clk 00:15:57][%emt
00:00:03]} 37...Kf8 {[%clk 00:07:01][%emt 00:00:06]} 38.Nd6 {[%clk
00:15:42][%emt 00:00:45]} 38...Ra3 {[%clk 00:04:26][%emt 00:03:05]} 39.Rxf7+ 
{[%clk 00:15:51][%emt 00:00:21]} 39...Kg8 {[%clk 00:04:53][%emt 00:00:03]} 
40.Ra7 {[%clk 00:16:08][%emt 00:00:13]} 40...Rxb3 {[%clk 00:04:19][%emt
00:01:03]} 41.Ra8+ {[%clk 00:16:20][%emt 00:00:19]} 41...Kh7 {[%clk
00:04:45][%emt 00:00:04]} 42.Nf7 {[%clk 00:16:44][%emt 00:00:05]} 42...g6 
{[%clk 00:04:55][%emt 00:00:21]} 43.fxg6+ {[%clk 00:17:10][%emt 00:00:05]} 
43...Kg7 {[%clk 00:05:21] [%emt 00:00:03]} 44.Nd6 {[%clk 00:17:31] [%emt
00:00:08]} 1-0